[Event "*** Titled Tuesday Blitz"]
[Site "Chess.com"]
[Date "2020.12.29"]
[Round "9"]
[White "GigaQuparadze"]
[Black "area_5"]
[Result "1-0"]
[WhiteElo "2889"]
[BlackElo "2771"]
[TimeControl "180+1"]
[EndTime "11:43:22 PST"]
[Termination "GigaQuparadze won by resignation"]

1. e4 {[%clk 0:03:00.9]} 1... e6 {[%clk 0:02:59.2]} 2. Qe2 {[%clk 0:03:00.6]}
2... c5 {[%clk 0:02:58.2]} 3. h4 {[%clk 0:02:59]} 3... Nc6 {[%clk 0:02:58.2]} 4.
c3 {[%clk 0:02:58.6]} 4... Nge7 {[%clk 0:02:57.2]} 5. g3 {[%clk 0:02:58.1]} 5...
b6 {[%clk 0:02:55]} 6. Bg2 {[%clk 0:02:58]} 6... Bb7 {[%clk 0:02:55.2]} 7. Nf3
{[%clk 0:02:58.2]} 7... d5 {[%clk 0:02:55.2]} 8. exd5 {[%clk 0:02:55.1]} 8...
Nxd5 {[%clk 0:02:54.6]} 9. O-O {[%clk 0:02:55.1]} 9... Be7 {[%clk 0:02:51.8]}
10. Na3 {[%clk 0:02:54.5]} 10... O-O {[%clk 0:02:50.4]} 11. Nc4 {[%clk
0:02:54.6]} 11... Bf6 {[%clk 0:02:47.5]} 12. d3 {[%clk 0:02:54.3]} 12... h6
{[%clk 0:02:47.1]} 13. Nce5 {[%clk 0:02:51.6]} 13... Qc7 {[%clk 0:02:46.2]} 14.
Ng4 {[%clk 0:02:50.1]} 14... Be7 {[%clk 0:02:44.5]} 15. Re1 {[%clk 0:02:50.1]}
15... Rfd8 {[%clk 0:02:43.1]} 16. Nfe5 {[%clk 0:02:48.7]} 16... Nf6 {[%clk
0:02:39.2]} 17. Nxf7 {[%clk 0:02:42.8]} 17... Kxf7 {[%clk 0:02:31.6]} 18. Qxe6+
{[%clk 0:02:40.7]} 18... Kf8 {[%clk 0:02:22.2]} 19. Nxh6 {[%clk 0:02:28.4]}
19... Bd6 {[%clk 0:02:12.6]} 20. Bg5 {[%clk 0:02:24.8]} 20... Re8 {[%clk
0:02:08]} 21. Qf5 {[%clk 0:02:24.1]} 21... Ne7 {[%clk 0:02:03.5]} 22. Rxe7
{[%clk 0:02:14.7]} 22... Rxe7 {[%clk 0:01:49.1]} 23. Bxf6 {[%clk 0:02:13.6]}
23... gxf6 {[%clk 0:01:48.6]} 24. Qxf6+ {[%clk 0:02:12.9]} 24... Ke8 {[%clk
0:01:48.8]} 25. Nf5 {[%clk 0:02:12.1]} 25... Bxg2 {[%clk 0:00:36.9]} 26. Nxd6+
{[%clk 0:02:02.3]} 26... Kd7 {[%clk 0:00:36]} 27. Nf5 {[%clk 0:02:02.3]} 27...
Re2 {[%clk 0:00:36]} 28. Kxg2 {[%clk 0:01:54.6]} 28... Qc6+ {[%clk 0:00:35.7]}
29. Qxc6+ {[%clk 0:01:54.3]} 29... Kxc6 {[%clk 0:00:36.6]} 30. b4 {[%clk
0:01:54.5]} 30... Rf8 {[%clk 0:00:34.4]} 31. g4 {[%clk 0:01:54.2]} 31... Rd2
{[%clk 0:00:32.5]} 32. bxc5 {[%clk 0:01:53.9]} 32... Kxc5 {[%clk 0:00:31.2]} 33.
d4+ {[%clk 0:01:53]} 33... Kc4 {[%clk 0:00:31.4]} 34. h5 {[%clk 0:01:50.7]}
34... Kxc3 {[%clk 0:00:31.4]} 35. h6 {[%clk 0:01:51]} 35... Kb2 {[%clk
0:00:30.7]} 36. Rh1 {[%clk 0:01:49.4]} 36... Rc2 {[%clk 0:00:28.9]} 37. h7
{[%clk 0:01:49]} 37... Rcc8 {[%clk 0:00:28.6]} 38. Ne7 {[%clk 0:01:47.1]} 38...
Ra8 {[%clk 0:00:22.5]} 39. Ng6 {[%clk 0:01:46.9]} 39... Rf6 {[%clk 0:00:20.7]}
40. Ne5 {[%clk 0:01:45.7]} 40... Rff8 {[%clk 0:00:20.1]} 41. g5 {[%clk 0:01:46]}
41... Kxa2 {[%clk 0:00:19.2]} 42. g6 {[%clk 0:01:46.3]} 42... b5 {[%clk
0:00:19.5]} 43. g7 {[%clk 0:01:46.3]} 43... b4 {[%clk 0:00:19.7]} 44. h8=Q
{[%clk 0:01:44]} 44... Rxh8 {[%clk 0:00:19.4]} 45. Rxh8 {[%clk 0:01:44.5]} 45...
Rxh8 {[%clk 0:00:18.7]} 46. gxh8=Q {[%clk 0:01:44.1]} 46... b3 {[%clk
0:00:19.6]} 47. Nd3 {[%clk 0:01:43.5]} 47... b2 {[%clk 0:00:20.5]} 48. Nxb2
{[%clk 0:01:43.3]} 48... Kxb2 {[%clk 0:00:20.6]} 49. Qb8+ {[%clk 0:01:43.8]} 1-0

[Event "*** Titled Tuesday Blitz"]
[Site "Chess.com"]
[Date "2020.12.29"]
[Round "9"]
[White "Harsha_Bharathakoti"]
[Black "goldenpuppy"]
[Result "1-0"]
[WhiteElo "2801"]
[BlackElo "2393"]
[TimeControl "180+1"]
[EndTime "11:43:25 PST"]
[Termination "Harsha_Bharathakoti won by resignation"]

1. d4 {[%clk 0:03:00.9]} 1... Nf6 {[%clk 0:02:59.3]} 2. c4 {[%clk 0:02:59.6]}
2... e6 {[%clk 0:02:59]} 3. Nc3 {[%clk 0:02:59.4]} 3... Bb4 {[%clk 0:02:59]} 4.
e3 {[%clk 0:02:59.5]} 4... O-O {[%clk 0:02:58.5]} 5. Bd2 {[%clk 0:02:58.5]} 5...
d5 {[%clk 0:02:58.8]} 6. Nf3 {[%clk 0:02:58.4]} 6... c5 {[%clk 0:02:58.6]} 7.
Rc1 {[%clk 0:02:53.4]} 7... Nc6 {[%clk 0:02:58.7]} 8. a3 {[%clk 0:02:47.7]} 8...
Bxc3 {[%clk 0:02:56.9]} 9. Bxc3 {[%clk 0:02:48.6]} 9... cxd4 {[%clk 0:02:53.5]}
10. Nxd4 {[%clk 0:02:47]} 10... dxc4 {[%clk 0:02:53]} 11. Nxc6 {[%clk
0:02:42.7]} 11... Qxd1+ {[%clk 0:02:52.1]} 12. Rxd1 {[%clk 0:02:42.7]} 12...
bxc6 {[%clk 0:02:53]} 13. Bxc4 {[%clk 0:02:43]} 13... c5 {[%clk 0:02:49.4]} 14.
f3 {[%clk 0:02:40.8]} 14... Bb7 {[%clk 0:02:48.4]} 15. e4 {[%clk 0:02:41.1]}
15... Rad8 {[%clk 0:02:47.7]} 16. Ke2 {[%clk 0:02:37.9]} 16... Rfe8 {[%clk
0:02:42.7]} 17. Bb5 {[%clk 0:02:31.5]} 17... Rxd1 {[%clk 0:02:16.7]} 18. Rxd1
{[%clk 0:02:29.9]} 18... Rc8 {[%clk 0:02:17.2]} 19. g4 {[%clk 0:02:09.1]} 19...
a6 {[%clk 0:02:15.7]} 20. Bc4 {[%clk 0:02:08]} 20... h6 {[%clk 0:02:13.8]} 21.
h4 {[%clk 0:02:07.8]} 21... Bc6 {[%clk 0:02:13.1]} 22. Bxa6 {[%clk 0:02:05.9]}
22... Rb8 {[%clk 0:02:13.5]} 23. g5 {[%clk 0:01:52.8]} 23... hxg5 {[%clk
0:02:10.8]} 24. hxg5 {[%clk 0:01:53.7]} 24... Nd7 {[%clk 0:02:10.3]} 25. Rd6
{[%clk 0:01:53.3]} 25... Rb6 {[%clk 0:02:06.2]} 26. Bd3 {[%clk 0:01:45.6]} 26...
Kf8 {[%clk 0:02:06]} 27. e5 {[%clk 0:01:25]} 27... Ke7 {[%clk 0:02:03.5]} 28. f4
{[%clk 0:01:25.6]} 28... g6 {[%clk 0:01:51.4]} 29. Kd2 {[%clk 0:01:23.8]} 29...
Nb8 {[%clk 0:01:50.5]} 30. a4 {[%clk 0:01:07.6]} 30... Rb7 {[%clk 0:01:39.9]}
31. a5 {[%clk 0:01:06]} 31... Ra7 {[%clk 0:01:32]} 32. a6 {[%clk 0:00:57.1]}
32... Bd5 {[%clk 0:01:24.6]} 33. Ba5 {[%clk 0:00:54.3]} 33... Nd7 {[%clk
0:01:21.8]} 34. Kc3 {[%clk 0:00:47.7]} 34... Ra8 {[%clk 0:01:16.9]} 35. Bb5
{[%clk 0:00:47.6]} 35... Ra7 {[%clk 0:01:10.8]} 36. b3 {[%clk 0:00:38.4]} 36...
Ke8 {[%clk 0:01:06.1]} 37. Bb6 {[%clk 0:00:36.8]} 1-0

[Event "*** Titled Tuesday Blitz"]
[Site "Chess.com"]
[Date "2020.12.29"]
[Round "9"]
[White "Spriteball"]
[Black "amatatanav"]
[Result "0-1"]
[WhiteElo "2318"]
[BlackElo "2435"]
[TimeControl "180+1"]
[EndTime "11:43:34 PST"]
[Termination "amatatanav won by resignation"]

1. c4 {[%clk 0:03:00.9]} 1... e6 {[%clk 0:02:59.6]} 2. Nf3 {[%clk 0:02:57.7]}
2... d5 {[%clk 0:03:00.5]} 3. g3 {[%clk 0:02:55.5]} 3... Nf6 {[%clk 0:03:00.9]}
4. Bg2 {[%clk 0:02:54.8]} 4... Be7 {[%clk 0:03:01.5]} 5. O-O {[%clk 0:02:54.9]}
5... O-O {[%clk 0:03:02.2]} 6. b3 {[%clk 0:02:54.4]} 6... d4 {[%clk 0:03:02.4]}
7. Bb2 {[%clk 0:02:52.1]} 7... c5 {[%clk 0:03:02.6]} 8. e3 {[%clk 0:02:48.3]}
8... Nc6 {[%clk 0:03:02.9]} 9. exd4 {[%clk 0:02:46.9]} 9... cxd4 {[%clk
0:03:03.8]} 10. d3 {[%clk 0:02:46.8]} 10... e5 {[%clk 0:03:02.9]} 11. a3 {[%clk
0:02:45.1]} 11... a5 {[%clk 0:03:02.6]} 12. Nbd2 {[%clk 0:02:45.3]} 12... Bf5
{[%clk 0:02:54.2]} 13. Qe2 {[%clk 0:02:44.5]} 13... Nd7 {[%clk 0:02:45.3]} 14.
Ne1 {[%clk 0:02:35.4]} 14... Re8 {[%clk 0:02:29.2]} 15. Nc2 {[%clk 0:02:23.8]}
15... Nc5 {[%clk 0:02:10.3]} 16. Bxc6 {[%clk 0:02:03.2]} 16... bxc6 {[%clk
0:02:10.2]} 17. Qxe5 {[%clk 0:02:01]} 17... Bxd3 {[%clk 0:01:39]} 18. Rfc1
{[%clk 0:01:51.3]} 18... Bxc2 {[%clk 0:01:22.1]} 19. Rxc2 {[%clk 0:01:40]} 19...
Nd3 {[%clk 0:01:18.5]} 20. Qe4 {[%clk 0:01:04.1]} 20... Nxb2 {[%clk 0:01:17.8]}
21. Rxb2 {[%clk 0:01:03.9]} 21... d3 {[%clk 0:01:11.7]} 22. Re1 {[%clk
0:00:52.4]} 22... Bxa3 {[%clk 0:01:06.4]} 23. Qxe8+ {[%clk 0:00:47.1]} 23...
Qxe8 {[%clk 0:01:07.3]} 24. Rxe8+ {[%clk 0:00:47.4]} 24... Rxe8 {[%clk
0:01:07.5]} 25. Ra2 {[%clk 0:00:41.2]} 25... Bb4 {[%clk 0:01:06.8]} 26. Nf3
{[%clk 0:00:25.3]} 26... d2 {[%clk 0:01:06.6]} 27. Ra1 {[%clk 0:00:15.8]} 27...
Re1+ {[%clk 0:01:03.5]} 28. Nxe1 {[%clk 0:00:16]} 28... dxe1=Q+ {[%clk
0:01:04.3]} 29. Rxe1 {[%clk 0:00:16.5]} 29... Bxe1 {[%clk 0:01:04.8]} 30. Kf1
{[%clk 0:00:16.9]} 30... Bb4 {[%clk 0:01:04.6]} 31. Ke2 {[%clk 0:00:17.3]} 31...
Kf8 {[%clk 0:01:05]} 32. Kd3 {[%clk 0:00:17.9]} 32... Ke7 {[%clk 0:01:05.3]} 33.
Ke4 {[%clk 0:00:15.5]} 33... Ke6 {[%clk 0:01:05]} 34. f4 {[%clk 0:00:14.2]}
34... f5+ {[%clk 0:01:05.1]} 35. Kd4 {[%clk 0:00:13.4]} 35... Kd6 {[%clk
0:01:05.1]} 36. h3 {[%clk 0:00:11.4]} 36... Bc5+ {[%clk 0:01:06]} 37. Kd3 {[%clk
0:00:11.1]} 37... h5 {[%clk 0:01:06.2]} 0-1

[Event "*** Titled Tuesday Blitz"]
[Site "Chess.com"]
[Date "2020.12.29"]
[Round "9"]
[White "tylityli"]
[Black "glebus008"]
[Result "1/2-1/2"]
[WhiteElo "2357"]
[BlackElo "2250"]
[TimeControl "180+1"]
[EndTime "11:43:37 PST"]
[Termination "Game drawn by repetition"]

1. d4 {[%clk 0:02:49.3]} 1... e6 {[%clk 0:03:00.8]} 2. c4 {[%clk 0:02:48.3]}
2... d5 {[%clk 0:03:00.2]} 3. Nc3 {[%clk 0:02:47.3]} 3... c6 {[%clk 0:03:00.3]}
4. e3 {[%clk 0:02:46.3]} 4... Bd6 {[%clk 0:02:59.3]} 5. Nf3 {[%clk 0:02:45]}
5... f5 {[%clk 0:02:59.4]} 6. b3 {[%clk 0:02:43.2]} 6... Nf6 {[%clk 0:02:59.9]}
7. a4 {[%clk 0:02:43.4]} 7... Qe7 {[%clk 0:02:59.9]} 8. Bd3 {[%clk 0:02:42.5]}
8... a5 {[%clk 0:02:59.4]} 9. O-O {[%clk 0:02:42]} 9... Na6 {[%clk 0:02:59.2]}
10. Bb2 {[%clk 0:02:41.4]} 10... Ne4 {[%clk 0:02:58.3]} 11. Bxe4 {[%clk
0:02:36]} 11... fxe4 {[%clk 0:02:57.9]} 12. Ne5 {[%clk 0:02:35.3]} 12... O-O
{[%clk 0:02:52.5]} 13. Ne2 {[%clk 0:02:25.5]} 13... Nb4 {[%clk 0:02:48.6]} 14.
Nf4 {[%clk 0:02:24.5]} 14... Bd7 {[%clk 0:02:38.7]} 15. Qg4 {[%clk 0:02:20.2]}
15... Rf5 {[%clk 0:02:32.7]} 16. h4 {[%clk 0:02:14.2]} 16... Raf8 {[%clk
0:02:29.4]} 17. h5 {[%clk 0:02:06.6]} 17... Be8 {[%clk 0:02:15]} 18. Rad1 {[%clk
0:02:02.1]} 18... Bxe5 {[%clk 0:01:59.9]} 19. dxe5 {[%clk 0:02:01.4]} 19... Rxf4
{[%clk 0:01:59.5]} 20. exf4 {[%clk 0:01:57.8]} 20... Nd3 {[%clk 0:01:59]} 21.
Rxd3 {[%clk 0:01:37.8]} 21... exd3 {[%clk 0:01:59.9]} 22. Rd1 {[%clk 0:01:36.7]}
22... Rf5 {[%clk 0:01:48.2]} 23. Rxd3 {[%clk 0:01:34.7]} 23... Bxh5 {[%clk
0:01:46.7]} 24. Qh3 {[%clk 0:01:24.3]} 24... Bg6 {[%clk 0:01:28.2]} 25. cxd5
{[%clk 0:01:17.2]} 25... cxd5 {[%clk 0:01:21.1]} 26. Bc1 {[%clk 0:01:02.6]}
26... Rh5 {[%clk 0:01:17]} 27. Qf3 {[%clk 0:01:01.9]} 27... Qh4 {[%clk
0:01:12.7]} 28. Qh3 {[%clk 0:00:47.5]} 28... Qe7 {[%clk 0:00:38.9]} 29. Qf3
{[%clk 0:00:42.1]} 29... Qh4 {[%clk 0:00:24.9]} 30. Qh3 {[%clk 0:00:41.6]} 30...
Qe7 {[%clk 0:00:22.3]} 1/2-1/2

[Event "*** Titled Tuesday Blitz"]
[Site "Chess.com"]
[Date "2020.12.29"]
[Round "9"]
[White "vrekhson"]
[Black "imdvb6307"]
[Result "0-1"]
[WhiteElo "2241"]
[BlackElo "2385"]
[TimeControl "180+1"]
[EndTime "11:43:43 PST"]
[Termination "imdvb6307 won by resignation"]

1. e4 {[%clk 0:03:00.9]} 1... Nc6 {[%clk 0:02:59.4]} 2. Nf3 {[%clk 0:03:00.2]}
2... d6 {[%clk 0:02:58.9]} 3. Nc3 {[%clk 0:02:58.4]} 3... Nf6 {[%clk 0:02:56.8]}
4. Bc4 {[%clk 0:02:56.7]} 4... Bg4 {[%clk 0:02:55.4]} 5. h3 {[%clk 0:02:51.3]}
5... Bxf3 {[%clk 0:02:53.8]} 6. Qxf3 {[%clk 0:02:50.9]} 6... Ne5 {[%clk
0:02:54.2]} 7. Qe2 {[%clk 0:02:47.6]} 7... Nxc4 {[%clk 0:02:54.5]} 8. Qxc4
{[%clk 0:02:48.5]} 8... c6 {[%clk 0:02:54.6]} 9. d4 {[%clk 0:02:46.5]} 9... e5
{[%clk 0:02:55.1]} 10. Bg5 {[%clk 0:02:44]} 10... Be7 {[%clk 0:02:54]} 11. O-O-O
{[%clk 0:02:43.5]} 11... Qa5 {[%clk 0:02:43.6]} 12. dxe5 {[%clk 0:02:37.9]}
12... dxe5 {[%clk 0:02:42.3]} 13. g4 {[%clk 0:02:30.5]} 13... O-O {[%clk
0:02:39.3]} 14. Kb1 {[%clk 0:02:20.7]} 14... Rfd8 {[%clk 0:02:30.3]} 15. Be3
{[%clk 0:02:13.3]} 15... Nd7 {[%clk 0:02:19.7]} 16. Ne2 {[%clk 0:01:48]} 16...
Nb6 {[%clk 0:02:14.3]} 17. Qb3 {[%clk 0:01:40.7]} 17... Qa4 {[%clk 0:02:08.9]}
18. Ng3 {[%clk 0:01:25.4]} 18... Qxb3 {[%clk 0:02:02.7]} 19. axb3 {[%clk
0:01:24.5]} 19... g6 {[%clk 0:02:03]} 20. f3 {[%clk 0:01:21.7]} 20... Kf8 {[%clk
0:01:59.8]} 21. c4 {[%clk 0:01:20.3]} 21... Ke8 {[%clk 0:01:57.8]} 22. Kc2
{[%clk 0:01:20.7]} 22... Rxd1 {[%clk 0:01:53.2]} 23. Rxd1 {[%clk 0:01:19.9]}
23... Nd7 {[%clk 0:01:52.3]} 24. Kc3 {[%clk 0:01:07.9]} 24... a5 {[%clk
0:01:51.5]} 25. Rh1 {[%clk 0:01:02.6]} 25... Bc5 {[%clk 0:01:46.8]} 26. Bxc5
{[%clk 0:00:51.5]} 26... Nxc5 {[%clk 0:01:46.5]} 27. b4 {[%clk 0:00:52.1]} 27...
axb4+ {[%clk 0:01:39.8]} 28. Kxb4 {[%clk 0:00:53]} 28... Nd3+ {[%clk 0:01:39.6]}
29. Kc3 {[%clk 0:00:53.3]} 29... Nf4 {[%clk 0:01:39.5]} 30. h4 {[%clk
0:00:48.3]} 30... Rd8 {[%clk 0:01:39.4]} 31. Rf1 {[%clk 0:00:42.3]} 31... Rd3+
{[%clk 0:01:23.6]} 32. Kc2 {[%clk 0:00:42]} 32... b5 {[%clk 0:01:23.5]} 33. cxb5
{[%clk 0:00:29.5]} 33... cxb5 {[%clk 0:01:23.2]} 34. Ne2 {[%clk 0:00:24.9]}
34... Re3 {[%clk 0:01:22.7]} 35. Nxf4 {[%clk 0:00:24.6]} 35... exf4 {[%clk
0:01:22.2]} 36. Rf2 {[%clk 0:00:22.2]} 36... b4 {[%clk 0:01:21.9]} 37. Rd2
{[%clk 0:00:22]} 37... Rxf3 {[%clk 0:01:20.9]} 38. Rd4 {[%clk 0:00:20.1]} 38...
b3+ {[%clk 0:01:19.8]} 39. Kd2 {[%clk 0:00:20.5]} 39... h6 {[%clk 0:01:14.3]}
40. Rc4 {[%clk 0:00:18]} 40... g5 {[%clk 0:01:12.4]} 41. hxg5 {[%clk 0:00:17.5]}
41... hxg5 {[%clk 0:01:12.3]} 42. Rc3 {[%clk 0:00:18.1]} 42... Rxc3 {[%clk
0:01:00.6]} 0-1

[Event "*** Titled Tuesday Blitz"]
[Site "Chess.com"]
[Date "2020.12.29"]
[Round "9"]
[White "Chuchofrio1"]
[Black "BobbySteen89"]
[Result "0-1"]
[WhiteElo "2262"]
[BlackElo "2131"]
[TimeControl "180+1"]
[EndTime "11:43:43 PST"]
[Termination "BobbySteen89 won by resignation"]

1. d4 {[%clk 0:03:00.9]} 1... Nf6 {[%clk 0:02:59.7]} 2. c4 {[%clk 0:03:00.6]}
2... c5 {[%clk 0:03:00.2]} 3. d5 {[%clk 0:03:00.4]} 3... b5 {[%clk 0:03:00.5]}
4. cxb5 {[%clk 0:02:59.9]} 4... a6 {[%clk 0:03:01.1]} 5. Nc3 {[%clk 0:03:00]}
5... g6 {[%clk 0:03:00.6]} 6. e4 {[%clk 0:03:00.3]} 6... d6 {[%clk 0:03:01.1]}
7. Bd2 {[%clk 0:02:54.6]} 7... axb5 {[%clk 0:03:01.1]} 8. Bxb5+ {[%clk
0:02:53.9]} 8... Nbd7 {[%clk 0:03:01.7]} 9. Nf3 {[%clk 0:02:53.1]} 9... Bg7
{[%clk 0:03:02.3]} 10. O-O {[%clk 0:02:52.5]} 10... O-O {[%clk 0:03:02.4]} 11.
Qe2 {[%clk 0:02:52]} 11... Qb6 {[%clk 0:03:00.3]} 12. Be3 {[%clk 0:02:48.2]}
12... Ba6 {[%clk 0:02:59.9]} 13. a4 {[%clk 0:02:46.7]} 13... Bxb5 {[%clk
0:02:57.8]} 14. Qxb5 {[%clk 0:02:43.9]} 14... Qxb5 {[%clk 0:02:57.9]} 15. axb5
{[%clk 0:02:43.9]} 15... Ng4 {[%clk 0:02:43.7]} 16. Bf4 {[%clk 0:02:31.7]} 16...
Rfb8 {[%clk 0:02:35.5]} 17. Rxa8 {[%clk 0:02:17.3]} 17... Rxa8 {[%clk
0:02:34.5]} 18. Nd2 {[%clk 0:02:17.6]} 18... Rb8 {[%clk 0:02:28.2]} 19. h3
{[%clk 0:02:07.7]} 19... Nge5 {[%clk 0:02:12.9]} 20. Bg5 {[%clk 0:01:52]} 20...
Kf8 {[%clk 0:02:06.9]} 21. Ra1 {[%clk 0:01:49.8]} 21... h6 {[%clk 0:02:05]} 22.
Be3 {[%clk 0:01:48.9]} 22... Nd3 {[%clk 0:02:03.8]} 23. Rb1 {[%clk 0:01:37.9]}
23... Nxb2 {[%clk 0:02:01.4]} 24. Rxb2 {[%clk 0:01:31.6]} 24... Bxc3 {[%clk
0:02:00.9]} 25. Bxh6+ {[%clk 0:01:31.5]} 25... Ke8 {[%clk 0:01:59.5]} 26. Ra2
{[%clk 0:01:27.8]} 26... Rxb5 {[%clk 0:01:56]} 27. Nc4 {[%clk 0:01:25.4]} 27...
Nb6 {[%clk 0:01:46]} 28. Nxb6 {[%clk 0:01:20.6]} 28... Rxb6 {[%clk 0:01:45.9]}
29. Ra8+ {[%clk 0:01:20.6]} 29... Kd7 {[%clk 0:01:44.9]} 30. Ra7+ {[%clk
0:01:18.6]} 30... Kd8 {[%clk 0:01:44.6]} 31. Ra8+ {[%clk 0:01:18.6]} 31... Kc7
{[%clk 0:01:43.8]} 32. Rf8 {[%clk 0:01:15.8]} 32... Be5 {[%clk 0:01:39.2]} 33.
f4 {[%clk 0:01:13.8]} 33... Bd4+ {[%clk 0:01:36.3]} 34. Kh2 {[%clk 0:01:13.8]}
34... f6 {[%clk 0:01:32.2]} 35. Rg8 {[%clk 0:01:08.6]} 35... g5 {[%clk
0:01:30.4]} 36. fxg5 {[%clk 0:01:08.7]} 36... Be5+ {[%clk 0:01:30.4]} 37. g3
{[%clk 0:01:06.6]} 37... Rb2+ {[%clk 0:01:30.5]} 38. Kg1 {[%clk 0:01:06.1]}
38... fxg5 {[%clk 0:01:31.1]} 39. Rxg5 {[%clk 0:01:01.4]} 39... Re2 {[%clk
0:01:31.5]} 40. Rg4 {[%clk 0:01:00.1]} 40... c4 {[%clk 0:01:31.2]} 41. Kf1
{[%clk 0:00:59.8]} 41... Rb2 {[%clk 0:01:26.3]} 42. h4 {[%clk 0:00:58.8]} 42...
c3 {[%clk 0:01:26.5]} 43. Ke1 {[%clk 0:00:54.1]} 43... Rg2 {[%clk 0:01:13.5]}
44. h5 {[%clk 0:00:48.7]} 44... Rg1+ {[%clk 0:01:00.2]} 45. Ke2 {[%clk 0:00:47]}
45... c2 {[%clk 0:00:57]} 46. Rg5 {[%clk 0:00:40.7]} 46... c1=Q {[%clk
0:00:52.1]} 0-1

[Event "*** Titled Tuesday Blitz"]
[Site "Chess.com"]
[Date "2020.12.29"]
[Round "9"]
[White "WinOrTilt"]
[Black "Trickov"]
[Result "0-1"]
[WhiteElo "2144"]
[BlackElo "2330"]
[TimeControl "180+1"]
[EndTime "11:43:44 PST"]
[Termination "Trickov won by resignation"]

1. d4 {[%clk 0:03:00.4]} 1... d5 {[%clk 0:02:58.3]} 2. Nf3 {[%clk 0:03:00.4]}
2... Nf6 {[%clk 0:02:56.1]} 3. e3 {[%clk 0:03:00]} 3... c6 {[%clk 0:02:52.9]} 4.
Nbd2 {[%clk 0:02:59.7]} 4... Bf5 {[%clk 0:02:46.8]} 5. Bd3 {[%clk 0:02:59.6]}
5... e6 {[%clk 0:02:45]} 6. O-O {[%clk 0:02:58.6]} 6... Nbd7 {[%clk 0:02:39.8]}
7. Ne5 {[%clk 0:02:56.6]} 7... Nxe5 {[%clk 0:02:35.6]} 8. dxe5 {[%clk
0:02:57.5]} 8... Nd7 {[%clk 0:02:35.8]} 9. f4 {[%clk 0:02:57.8]} 9... Nc5 {[%clk
0:02:26.8]} 10. Bxf5 {[%clk 0:02:44.9]} 10... exf5 {[%clk 0:02:25.6]} 11. Nf3
{[%clk 0:02:43.7]} 11... Be7 {[%clk 0:02:19.2]} 12. Nd4 {[%clk 0:02:41.1]} 12...
g6 {[%clk 0:02:18.8]} 13. b4 {[%clk 0:02:40.4]} 13... Ne4 {[%clk 0:02:17.7]} 14.
e6 {[%clk 0:02:40.7]} 14... Bxb4 {[%clk 0:01:56.2]} 15. exf7+ {[%clk 0:02:39.5]}
15... Kxf7 {[%clk 0:01:55.2]} 16. Bb2 {[%clk 0:02:30.5]} 16... Re8 {[%clk
0:01:47.8]} 17. Nf3 {[%clk 0:02:14.9]} 17... Bc3 {[%clk 0:01:30.5]} 18. Bxc3
{[%clk 0:01:54.9]} 18... Nxc3 {[%clk 0:01:28.6]} 19. Ng5+ {[%clk 0:01:47.8]}
19... Qxg5 {[%clk 0:01:26.2]} 20. fxg5 {[%clk 0:01:39.1]} 20... Nxd1 {[%clk
0:01:26.1]} 21. Raxd1 {[%clk 0:01:40]} 21... Rxe3 {[%clk 0:01:26.2]} 22. g4
{[%clk 0:01:37.4]} 22... Ke6 {[%clk 0:01:22.4]} 23. Rde1 {[%clk 0:01:26.9]}
23... Re4 {[%clk 0:01:21.2]} 24. gxf5+ {[%clk 0:01:17.8]} 24... gxf5 {[%clk
0:01:19.9]} 25. Rxe4+ {[%clk 0:01:13.9]} 25... dxe4 {[%clk 0:01:17.5]} 26. Kf2
{[%clk 0:01:14.3]} 26... h6 {[%clk 0:01:11.6]} 27. gxh6 {[%clk 0:00:58.5]} 27...
Rh8 {[%clk 0:01:08.6]} 28. Ke3 {[%clk 0:00:42.6]} 28... Rxh6 {[%clk 0:01:02.6]}
29. Rf2 {[%clk 0:00:42.2]} 29... Ke5 {[%clk 0:00:59.7]} 30. a4 {[%clk
0:00:32.9]} 30... Rh3+ {[%clk 0:00:58.8]} 31. Ke2 {[%clk 0:00:30.7]} 31... f4
{[%clk 0:00:56.1]} 32. a5 {[%clk 0:00:24]} 32... e3 {[%clk 0:00:54.1]} 33. Rf1
{[%clk 0:00:21.8]} 0-1

[Event "*** Titled Tuesday Blitz"]
[Site "Chess.com"]
[Date "2020.12.29"]
[Round "9"]
[White "esteban062000"]
[Black "Snowflake"]
[Result "0-1"]
[WhiteElo "2190"]
[BlackElo "2419"]
[TimeControl "180+1"]
[EndTime "11:43:44 PST"]
[Termination "Snowflake won by checkmate"]

1. Nf3 {[%clk 0:03:00.9]} 1... g5 {[%clk 0:02:56.7]} 2. Nxg5 {[%clk 0:03:00.3]}
2... e5 {[%clk 0:02:56.6]} 3. d4 {[%clk 0:02:50.1]} 3... h6 {[%clk 0:02:52]} 4.
Nf3 {[%clk 0:02:49.2]} 4... e4 {[%clk 0:02:51.3]} 5. Ne5 {[%clk 0:02:47.2]} 5...
d6 {[%clk 0:02:50.5]} 6. Nc4 {[%clk 0:02:46.6]} 6... d5 {[%clk 0:02:50.6]} 7.
Ne5 {[%clk 0:02:32.2]} 7... c5 {[%clk 0:02:22.6]} 8. e3 {[%clk 0:02:25.5]} 8...
Nc6 {[%clk 0:02:19.7]} 9. Qh5 {[%clk 0:02:14.4]} 9... Be6 {[%clk 0:02:16.5]} 10.
Bd2 {[%clk 0:01:58.8]} 10... Nf6 {[%clk 0:02:14.8]} 11. Qh4 {[%clk 0:01:27.3]}
11... Nxe5 {[%clk 0:02:10.4]} 12. dxe5 {[%clk 0:01:27]} 12... Nd7 {[%clk
0:02:11]} 13. Qh5 {[%clk 0:01:14.8]} 13... Bg7 {[%clk 0:01:59.6]} 14. Bb5 {[%clk
0:01:12.6]} 14... a6 {[%clk 0:01:57.8]} 15. Bxd7+ {[%clk 0:01:11.2]} 15... Qxd7
{[%clk 0:01:58.7]} 16. O-O {[%clk 0:01:06.5]} 16... Qc7 {[%clk 0:01:54.8]} 17.
Bc3 {[%clk 0:01:04]} 17... O-O-O {[%clk 0:01:54.1]} 18. Nd2 {[%clk 0:00:39.9]}
18... d4 {[%clk 0:01:44.5]} 19. exd4 {[%clk 0:00:40.1]} 19... cxd4 {[%clk
0:01:45.4]} 20. Bb4 {[%clk 0:00:33.2]} 20... e3 {[%clk 0:01:39.5]} 21. fxe3
{[%clk 0:00:22.7]} 21... dxe3 {[%clk 0:01:40.4]} 22. Ne4 {[%clk 0:00:22.6]}
22... Bxe5 {[%clk 0:01:35.2]} 23. Rfd1 {[%clk 0:00:17.8]} 23... f5 {[%clk
0:01:18.1]} 24. Nc5 {[%clk 0:00:17.1]} 24... Bd5 {[%clk 0:01:18.5]} 25. c4
{[%clk 0:00:10.4]} 25... Bc6 {[%clk 0:01:11.7]} 26. Ne6 {[%clk 0:00:09.6]} 26...
Rxd1+ {[%clk 0:01:10.2]} 27. Rxd1 {[%clk 0:00:10.5]} 27... Qb6 {[%clk
0:01:09.4]} 28. Bc5 {[%clk 0:00:10.5]} 28... Qxb2 {[%clk 0:01:08.5]} 29. Qf7
{[%clk 0:00:10.6]} 29... Qf2+ {[%clk 0:01:03.5]} 30. Kh1 {[%clk 0:00:09.5]}
30... Bxg2# {[%clk 0:00:42.3]} 0-1